Workbook

Sheet シミュシート(メンテ費用有り)
P1: 売電金額パターン | Q1: 単価 | R1: 売電年数 | T1: 北海道（帯広） | V1: 地域 | W1: 1月 | X1: 2月 | Y1: 3月 | Z1: 4月 | AA1: 5月 | AB1: 6月 | AC1: 7月 | AD1: 8月 | AE1: 9月 | AF1: 10月 | AG1: 11月 | AH1: 12月 | AJ1: 角度 | AK1: 下 | AL1: 右 | AM1: 左 | AN1: 上 | AO1: 角度2 | AS1: =+基礎データ入力!Q3 -> 0° | AU1: -180 | AV1: -165 | AW1: -150 | AX1: -135 | AY1: -120 | AZ1: -105 | BA1: -90 | BB1: -75 | BC1: -60 | BD1: -45 | BE1: -30 | BF1: -15 | BG1: 0 | BH1: 15 | BI1: 30 | BJ1: 45 | BK1: 60 | BL1: 75 | BM1: 90 | BN1: 105 | BO1: 120 | BP1: 135 | BQ1: 150 | BR1: 165 | BS1: 180
P2: 2018/10kW未満/赤エリア/税込28円 | Q2: 28 | R2: 10 | T2: 北海道（札幌） | V2: =+F6 -> 東京（東京） | W2: =+VLOOKUP($V2,基礎データ入力!$D$3:$P$49,2,FALSE) -> 120.8166667 | X2: =+VLOOKUP($V2,基礎データ入力!$D$3:$P$49,3,FALSE) -> 119.1305556 | Y2: =+VLOOKUP($V2,基礎データ入力!$D$3:$P$49,4,FALSE) -> 131.3805556 | Z2: =+VLOOKUP($V2,基礎データ入力!$D$3:$P$49,5,FALSE) -> 142.2916667 | AA2: =+VLOOKUP($V2,基礎データ入力!$D$3:$P$49,6,FALSE) -> 136.3944444 | AB2: =+VLOOKUP($V2,基礎データ入力!$D$3:$P$49,7,FALSE) -> 108.3083333 | AC2: =+VLOOKUP($V2,基礎データ入力!$D$3:$P$49,8,FALSE) -> 131.5277778 | AD2: =+VLOOKUP($V2,基礎データ入力!$D$3:$P$49,9,FALSE) -> 122.5388889 | AE2: =+VLOOKUP($V2,基礎データ入力!$D$3:$P$49,10,FALSE) -> 99.95555556 | AF2: =+VLOOKUP($V2,基礎データ入力!$D$3:$P$49,11,FALSE) -> 101.1527778 | AG2: =+VLOOKUP($V2,基礎データ入力!$D$3:$P$49,12,FALSE) -> 91.05555556 | AH2: =+VLOOKUP($V2,基礎データ入力!$D$3:$P$49,13,FALSE) -> 99.79444444 | AI2: =SUM(W2:AH2) -> 1404.347222 | AJ2: -90°（東） | AK2: 真東 | AL2: 真北 | AM2: 真南 | AN2: 真西 | AO2: -90 | AS2: =+基礎データ入力!Q4 -> 5° | AU2: =+VLOOKUP($C$34,基礎データ入力!$Q$3:$AP$13,2,FALSE) -> 0.7958600773 | AV2: =+VLOOKUP($C$34,基礎データ入力!$Q$3:$AP$13,3,FALSE) -> 0.798289043 | AW2: =+VLOOKUP($C$34,基礎データ入力!$Q$3:$AP$13,4,FALSE) -> 0.8053544055 | AX2: =+VLOOKUP($C$34,基礎データ入力!$Q$3:$AP$13,5,FALSE) -> 0.8166902377 | AY2: =+VLOOKUP($C$34,基礎データ入力!$Q$3:$AP$13,6,FALSE) -> 0.8312561194 | AZ2: =+VLOOKUP($C$34,基礎データ入力!$Q$3:$AP$13,7,FALSE) -> 0.8480294324 | BA2: =+VLOOKUP($C$34,基礎データ入力!$Q$3:$AP$13,8,FALSE) -> 0.8658827253 | BB2: =+VLOOKUP($C$34,基礎データ入力!$Q$3:$AP$13,9,FALSE) -> 0.8837637099 | BC2: =+VLOOKUP($C$34,基礎データ入力!$Q$3:$AP$13,10,FALSE) -> 0.9001987875 | BD2: =+VLOOKUP($C$34,基礎データ入力!$Q$3:$AP$13,11,FALSE) -> 0.9142780849 | BE2: =+VLOOKUP($C$34,基礎データ入力!$Q$3:$AP$13,12,FALSE) -> 0.9251095309 | BF2: =+VLOOKUP($C$34,基礎データ入力!$Q$3:$AP$13,13,FALSE) -> 0.931836658 | BG2: =+VLOOKUP($C$34,基礎データ入力!$Q$3:$AP$13,14,FALSE) -> 0.9341232087 | BH2: =+VLOOKUP($C$34,基礎データ入力!$Q$3:$AP$13,15,FALSE) -> 0.9317792964 | BI2: =+VLOOKUP($C$34,基礎データ入力!$Q$3:$AP$13,16,FALSE) -> 0.9250818391 | BJ2: =+VLOOKUP($C$34,基礎データ入力!$Q$3:$AP$13,17,FALSE) -> 0.9143097327 | BK2: =+VLOOKUP($C$34,基礎データ入力!$Q$3:$AP$13,18,FALSE) -> 0.9002225233 | BL2: =+VLOOKUP($C$34,基礎データ入力!$Q$3:$AP$13,19,FALSE) -> 0.8837182163 | BM2: =+VLOOKUP($C$34,基礎データ入力!$Q$3:$AP$13,20,FALSE) -> 0.8660152503 | BN2: =+VLOOKUP($C$34,基礎データ入力!$Q$3:$AP$13,21,FALSE) -> 0.8481223977 | BO2: =+VLOOKUP($C$34,基礎データ入力!$Q$3:$AP$13,22,FALSE) -> 0.8313253489 | BP2: =+VLOOKUP($C$34,基礎データ入力!$Q$3:$AP$13,23,FALSE) -> 0.8167970488 | BQ2: =+VLOOKUP($C$34,基礎データ入力!$Q$3:$AP$13,24,FALSE) -> 0.8055007764 | BR2: =+VLOOKUP($C$34,基礎データ入力!$Q$3:$AP$13,25,FALSE) -> 0.7983602504 | BS2: =+VLOOKUP($C$34,基礎データ入力!$Q$3:$AP$13,26,FALSE) -> 0.7958600773
D3: =90*(1-C3) -> 90 | P3: 2018/10kW未満/青エリア/税込26円 | Q3: 26 | R3: 10 | T3: 青森（青森） | AJ3: -75°（南東） | AK3: 南東 | AL3: 北東 | AM3: 南西 | AN3: 北西 | AO3: -75 | AS3: =+基礎データ入力!Q5 -> 10°
P4: 2018/10kW以上/18円+税10% | Q4: 19.8 | R4: 20 | T4: 秋田（秋田） | V4: システム発電量計算結果 | AJ4: -60°（南東） | AK4: 南東 | AL4: 北東 | AM4: 南西 | AN4: 北西 | AO4: -60 | AS4: =+基礎データ入力!Q6 -> 15°
A5: お客様名 | F5: 地域 | K5: 起動有効期限 | L5: 2020-05-31 | N5: Ver 2.4.0 | P5: 2019/10kW未満/赤エリア/税込26円 | Q5: 26 | R5: 10 | T5: 岩手（盛岡） | V5: 地域 | W5: 1月 | X5: 2月 | Y5: 3月 | Z5: 4月 | AA5: 5月 | AB5: 6月 | AC5: 7月 | AD5: 8月 | AE5: 9月 | AF5: 10月 | AG5: 11月 | AH5: 12月 | AJ5: -45°（南東） | AK5: 南東 | AL5: 北東 | AM5: 南西 | AN5: 北西 | AO5: -45 | AS5: =+基礎データ入力!Q7 -> 20°
A6: ABC 様 | F6: 東京（東京） | P6: 2019/10kW未満/青エリア/税込24円 | Q6: 24 | R6: 10 | T6: 山形（山形） | V6: =+F6 -> 東京（東京） | W6: =+W2*$L$30*$N$30*基礎データ入力!$AX$5*基礎データ入力!$AY$3*基礎データ入力!$AZ$3 -> 726.0155346 | X6: =+X2*$L$30*$N$30*基礎データ入力!$AX$5*基礎データ入力!$AY$3*基礎データ入力!$AZ$3 -> 715.8832996 | Y6: =+Y2*$L$30*$N$30*基礎データ入力!$AX$3*基礎データ入力!$AY$3*基礎データ入力!$AZ$3 -> 745.6354958 | Z6: =+Z2*$L$30*$N$30*基礎データ入力!$AX$3*基礎データ入力!$AY$3*基礎データ入力!$AZ$3 -> 807.5602738 | AA6: =+AA2*$L$30*$N$30*基礎データ入力!$AX$3*基礎データ入力!$AY$3*基礎データ入力!$AZ$3 -> 774.0912556 | AB6: =+AB2*$L$30*$N$30*基礎データ入力!$AX$4*基礎データ入力!$AY$3*基礎データ入力!$AZ$3 -> 578.5333703 | AC6: =+AC2*$L$30*$N$30*基礎データ入力!$AX$4*基礎データ入力!$AY$3*基礎データ入力!$AZ$3 -> 702.5609778 | AD6: =+AD2*$L$30*$N$30*基礎データ入力!$AX$4*基礎データ入力!$AY$3*基礎データ入力!$AZ$3 -> 654.5464619 | AE6: =+AE2*$L$30*$N$30*基礎データ入力!$AX$3*基礎データ入力!$AY$3*基礎データ入力!$AZ$3 -> 567.2864596 | AF6: =+AF2*$L$30*$N$30*基礎データ入力!$AX$3*基礎データ入力!$AY$3*基礎データ入力!$AZ$3 -> 574.081159 | AG6: =+AG2*$L$30*$N$30*基礎データ入力!$AX$3*基礎データ入力!$AY$3*基礎データ入力!$AZ$3 -> 516.7755154 | AH6: =+AH2*$L$30*$N$30*基礎データ入力!$AX$5*基礎データ入力!$AY$3*基礎データ入力!$AZ$3 -> 599.6880971 | AI6: =SUM(W6:AH6) -> 7962.657901 | AJ6: -30°（南東） | AK6: 南東 | AL6: 北東 | AM6: 南西 | AN6: 北西 | AO6: -30 | AS6: =+基礎データ入力!Q8 -> 25°
P7: 2019/10kW以上/14円+税10% | Q7: 15.4 | R7: 20 | T7: 宮城（仙台） | AJ7: -15°（南東） | AK7: 南東 | AL7: 北東 | AM7: 南西 | AN7: 北西 | AO7: -15 | AS7: =+基礎データ入力!Q9 -> 30°
P8: 2020/10kW未満/税込21円(委員長案) | Q8: 21 | R8: 10 | T8: 福島（郡山） | V8: お客様名 | AJ8: 0°（南） | AK8: 真南 | AL8: 真東 | AM8: 真西 | AN8: 真北 | AO8: 0 | AS8: =+基礎データ入力!Q10 -> 45°
A9: 売電金額パターン(年度にて指定) | E9: =$R$15 -> 10 | F9: 予想収支合計(税込) | P9: 2020/10kW以上/13円+税10%(委員長案) | Q9: 14.3 | R9: 20 | T9: 新潟（新潟） | V9: =+A6 -> ABC 様 | AJ9: 15°（南西） | AK9: 南西 | AL9: 南東 | AM9: 北西 | AN9: 北東 | AO9: 15 | AS9: =+基礎データ入力!Q11 -> 60°
A10: 2020/10kW未満/税込21円(委員長案) | E10: =L44*R15 -> 1862158.159 | T10: 長野（飯田） | AJ10: 30°（南西） | AK10: 南西 | AL10: 南東 | AM10: 北西 | AN10: 北東 | AO10: 30 | AS10: =+基礎データ入力!Q12 -> 75°
T11: 富山（富山） | V11: 地域 | AJ11: 45°（南西） | AK11: 南西 | AL11: 南東 | AM11: 北西 | AN11: 北東 | AO11: 45 | AS11: =+基礎データ入力!Q13 -> 90°
T12: 石川（金沢） | V12: =+F6 -> 東京（東京） | AJ12: 60°（南西） | AK12: 南西 | AL12: 南東 | AM12: 北西 | AN12: 北東 | AO12: 60
A13: 契約方式 | B13: 電気消費パターン | D13: 買電契約パターン | F13: 太陽光発電パネル型番 | T13: 福井（福井） | AJ13: 75°（南西） | AK13: 南西 | AL13: 南東 | AM13: 北西 | AN13: 北東 | AO13: 75
A14: 余剰 | B14: 3人以下の住宅 | D14: 夜間中心契約 | F14: SPR-X22-360 | P14: 指定結果 | T14: 東京（東京） | AJ14: 90°（西） | AK14: 真西 | AL14: 真南 | AM14: 真北 | AN14: 真東 | AO14: 90
P15: =VLOOKUP(A10,P2:R14,1,FALSE) -> 2020/10kW未満/税込21円(委員長案) | Q15: =VLOOKUP(A10,P2:R14,2,FALSE) -> 21 | R15: =VLOOKUP(A10,P2:R14,3,FALSE) -> 10 | T15: 神奈川（海老名）
T16: 茨城（水戸）
A17: 固定買取期間 | C17: 売電単価 | E17: 昼間買電平均単価(手入力可能) | P17: 自己消費パターン | Q17: 年間自己消費量 | T17: 栃木（宇都宮）
A18: =R15 -> 10 | C18: =Q15 -> 21 | E18: =Q42 -> 40 | P18: 6人以上又は昼間在宅多い | Q18: 2000 | T18: 群馬（前橋）
P19: 5人住宅 | Q19: 1800 | T19: 埼玉（さいたま）
P20: 4人住宅 | Q20: 1400 | T20: 千葉（千葉）
P21: 3人以下の住宅 | Q21: 1000 | T21: 山梨（甲府）
P22: 昼不在 | Q22: 800 | T22: 静岡（静岡）
A23: 事業認定容量(旧：設備認定容量) | E23: システム容量 | P23: 自己消費無し | Q23: 0 | T23: 岐阜（美濃）
A24: (太陽光出力かパワコンのどちらか低い方) | E24: (太陽光発電モジュール出力合計) | K24: 方位 | L24: システム容量（kW） | N24: 方位・勾配損失 | T24: 愛知（岡崎）
A25: 5.9 | C25: kW | D25: =+VLOOKUP(E34,$AJ$2:$AN$14,5,FALSE) -> 真北 | E25: =SUM(L26:L29) -> 7.92 | G25: kW | I25: パネル型式 | L25: (太陽光発電モジュール出力合計) | P25: 指定結果 | T25: 三重（津）
D26: 設置枚数 | H26: =+F14 -> SPR-X22-360 | K26: =+D25 -> 真北 | L26: =+I29*D27/1000 -> 0 | N26: =+HLOOKUP(R31,$AU$1:$BS$2,2,FALSE) -> 0.7958600773 | P26: =VLOOKUP(B14,P18:Q23,1,FALSE) -> 3人以下の住宅 | Q26: =VLOOKUP(B14,P18:Q23,2,FALSE) -> 1000 | T26: 大阪（大阪）
A27: =IF(E9=10,IF(A25<10,"OK","NG"),IF(E9=20,IF(A25>=10,"OK","NG"))) -> OK | G27: =IF(E25<A25,"NG","OK") -> OK | K27: =+G30 -> 真東 | L27: =+I29*F31/1000 -> 0 | N27: =+HLOOKUP(R32,$AU$1:$BS$2,2,FALSE) -> 0.8658827253 | T27: 滋賀（彦根）
I28: モジュール公称最大出力(W) | K28: =+D37 -> 真南 | L28: =+I29*D31/1000 -> 7.92 | N28: =+HLOOKUP(R33,$AU$1:$BS$2,2,FALSE) -> 0.9341232087 | T28: 奈良（奈良）
I29: =+VLOOKUP(H26,基礎データ入力!$A$3:$B$22,2,FALSE) -> 360 | J29: =+VLOOKUP(H26,基礎データ入力!A3:C21,3,FALSE) -> 1 | K29: =+A30 -> 真西 | L29: =+I29*B31/1000 -> 0 | N29: =+HLOOKUP(R34,$AU$1:$BS$2,2,FALSE) -> 0.8660152503 | T29: 和歌山（白浜）
A30: =+VLOOKUP(E34,$AJ$2:$AM$14,4,FALSE) -> 真西 | B30: 設置枚数 | D30: 設置枚数 | F30: 設置枚数 | G30: =+VLOOKUP(E34,$AJ$2:$AL$14,3,FALSE) -> 真東 | L30: =SUM(L26:L29) -> 7.92 | N30: =+N26*(L26/L30)+N27*(L27/L30)+N28*(L28/L30)+N29*(L29/L30) -> 0.9341232087 | R30: 方位 | T30: 京都（京都）
B31: 0 | D31: 22 | F31: 0 | R31: =+IF(R33-180<-180,(R33-180)+360,R33-180) -> -180 | T31: 兵庫（姫路）
R32: =+R33-90 -> -90 | T32: 岡山（岡山）
C33: 屋根傾斜角 | E33: 主方位 | I33: 太陽光設置費用材工概算(税込) | R33: =+VLOOKUP(E34,$AJ$2:$AO$14,6,FALSE) -> 0 | T33: 鳥取（鳥取）
C34: 10° | E34: 0°（南） | I34: 1843200 | L34: 材工とは太陽光発電パネル・パワーコンディショナ | R34: =+R33+90 -> 90 | T34: 広島（広島）
L35: モニター・金具・配線・屋根材・垂木・足場等を含みます | T35: 島根（松江）
T36: 山口（山口）
D37: =+VLOOKUP(E34,$AJ$2:$AK$14,2,FALSE) -> 真南 | H37: =$R$15 -> 10 | I37: 太陽光メンテナンス費用概算(税込) | L37: 太陽光撤去費用材工概算(税込) | T37: 徳島（徳島）
I38: =IF(E10*5%<I34*5%,I34*5%,E10*5%) -> 93107.90796 | L38: =I34*5% -> 92160 | P38: 昼間買電金額 | Q38: 買電単価 | T38: 愛媛（松山）
P39: 夜間中心契約 | Q39: 40 | T39: 高知（須崎）
A40: 【年間予測発電量・売電予想額】 | P40: オール電化契約 | Q40: 30 | T40: 福岡（飯塚）
A41: 太陽光発電 年間予想発電量 | D41: =IF($A$14="全量","昼間に購入する 年間電力量","太陽光から自家消費する年間電力量") -> 太陽光から自家消費する年間電力量 | F41: =IF($A$14="全量","昼間に購入する年間電気代…①","昼間の電気代年間節約額…①") -> 昼間の電気代年間節約額…① | I41: =IF($A$14="全量","年間売電予想額…②","余剰売電年間予想額…②") -> 余剰売電年間予想額…② | L41: =IF($A$14="全量","年間収支②－①","年間収支①＋②") -> 年間収支①＋② | P41: 従量契約 | Q41: 35 | T41: 佐賀（佐賀）
P42: =VLOOKUP(D14,P39:Q41,1,FALSE) -> 夜間中心契約 | Q42: =VLOOKUP(D14,P39:Q41,2,FALSE) -> 40 | T42: 長崎（長崎）
T43: 大分（大分）
A44: =AI6 -> 7962.657901 | D44: =Q26 -> 1000 | F44: =$E$18*D44 -> 40000 | I44: =IF($A$14="全量",($Q$15*A44),$Q$15*(A44-D44)) -> 146215.8159 | L44: =IF($A$14="全量",I44-F44,F44+I44) -> 186215.8159 | T44: 熊本（熊本）
T45: 宮崎（宮崎） | V45: 太陽光発電撤去費用概算(税込)
T46: 鹿児島（鹿児島）
R49: 175
A50: 季節自己消費% | B50: 0.16 | C50: 0.08 | D50: 0.06 | E50: 0.04 | F50: 0.04 | G50: 0.06 | H50: 0.1 | I50: 0.12 | J50: 0.06 | K50: 0.06 | L50: 0.08 | M50: 0.14 | N50: =SUM(B50:M50) -> 1 | R50: 134
A51: 下記、今後の課題 | R51: 75
A52: ・パネル劣化率計算どうする？ | R52: 75
A53: ・メンテナンス費用の計算は？→ｖ1.8.1で売電収支か設置費用の5%の何れか高い方で計算 | R53: 70
A54: ・廃棄費用の計算は？→v1.8.1で設置費用の5%として計算 | R54: 70
A55: ・固定買い取り期間終了後の売電収益計算は？

Sheet シミュシート(メンテ費用無し)
P1: 売電金額パターン | Q1: 単価 | R1: 売電年数 | T1: 北海道（帯広） | V1: 地域 | W1: 1月 | X1: 2月 | Y1: 3月 | Z1: 4月 | AA1: 5月 | AB1: 6月 | AC1: 7月 | AD1: 8月 | AE1: 9月 | AF1: 10月 | AG1: 11月 | AH1: 12月 | AJ1: 角度 | AK1: 下 | AL1: 右 | AM1: 左 | AN1: 上 | AO1: 角度2 | AS1: =+基礎データ入力!Q3 -> 0° | AU1: -180 | AV1: -165 | AW1: -150 | AX1: -135 | AY1: -120 | AZ1: -105 | BA1: -90 | BB1: -75 | BC1: -60 | BD1: -45 | BE1: -30 | BF1: -15 | BG1: 0 | BH1: 15 | BI1: 30 | BJ1: 45 | BK1: 60 | BL1: 75 | BM1: 90 | BN1: 105 | BO1: 120 | BP1: 135 | BQ1: 150 | BR1: 165 | BS1: 180
P2: 2018/10kW未満/赤エリア/税込28円 | Q2: 28 | R2: 10 | T2: 北海道（札幌） | V2: =+F6 -> 岡山（岡山） | W2: =+VLOOKUP($V2,基礎データ入力!$D$3:$P$49,2,FALSE) -> 89.41944444 | X2: =+VLOOKUP($V2,基礎データ入力!$D$3:$P$49,3,FALSE) -> 107.1305556 | Y2: =+VLOOKUP($V2,基礎データ入力!$D$3:$P$49,4,FALSE) -> 122.1888889 | Z2: =+VLOOKUP($V2,基礎データ入力!$D$3:$P$49,5,FALSE) -> 139.0388889 | AA2: =+VLOOKUP($V2,基礎データ入力!$D$3:$P$49,6,FALSE) -> 156.1833333 | AB2: =+VLOOKUP($V2,基礎データ入力!$D$3:$P$49,7,FALSE) -> 128.6638889 | AC2: =+VLOOKUP($V2,基礎データ入力!$D$3:$P$49,8,FALSE) -> 151.4361111 | AD2: =+VLOOKUP($V2,基礎データ入力!$D$3:$P$49,9,FALSE) -> 158.8638889 | AE2: =+VLOOKUP($V2,基礎データ入力!$D$3:$P$49,10,FALSE) -> 125.8222222 | AF2: =+VLOOKUP($V2,基礎データ入力!$D$3:$P$49,11,FALSE) -> 122.6888889 | AG2: =+VLOOKUP($V2,基礎データ入力!$D$3:$P$49,12,FALSE) -> 97.46944444 | AH2: =+VLOOKUP($V2,基礎データ入力!$D$3:$P$49,13,FALSE) -> 94.575 | AI2: =SUM(W2:AH2) -> 1493.480556 | AJ2: -90°（東） | AK2: 真東 | AL2: 真北 | AM2: 真南 | AN2: 真西 | AO2: -90 | AS2: =+基礎データ入力!Q4 -> 5° | AU2: =+VLOOKUP($C$34,基礎データ入力!$Q$3:$AP$13,2,FALSE) -> 0.7958600773 | AV2: =+VLOOKUP($C$34,基礎データ入力!$Q$3:$AP$13,3,FALSE) -> 0.798289043 | AW2: =+VLOOKUP($C$34,基礎データ入力!$Q$3:$AP$13,4,FALSE) -> 0.8053544055 | AX2: =+VLOOKUP($C$34,基礎データ入力!$Q$3:$AP$13,5,FALSE) -> 0.8166902377 | AY2: =+VLOOKUP($C$34,基礎データ入力!$Q$3:$AP$13,6,FALSE) -> 0.8312561194 | AZ2: =+VLOOKUP($C$34,基礎データ入力!$Q$3:$AP$13,7,FALSE) -> 0.8480294324 | BA2: =+VLOOKUP($C$34,基礎データ入力!$Q$3:$AP$13,8,FALSE) -> 0.8658827253 | BB2: =+VLOOKUP($C$34,基礎データ入力!$Q$3:$AP$13,9,FALSE) -> 0.8837637099 | BC2: =+VLOOKUP($C$34,基礎データ入力!$Q$3:$AP$13,10,FALSE) -> 0.9001987875 | BD2: =+VLOOKUP($C$34,基礎データ入力!$Q$3:$AP$13,11,FALSE) -> 0.9142780849 | BE2: =+VLOOKUP($C$34,基礎データ入力!$Q$3:$AP$13,12,FALSE) -> 0.9251095309 | BF2: =+VLOOKUP($C$34,基礎データ入力!$Q$3:$AP$13,13,FALSE) -> 0.931836658 | BG2: =+VLOOKUP($C$34,基礎データ入力!$Q$3:$AP$13,14,FALSE) -> 0.9341232087 | BH2: =+VLOOKUP($C$34,基礎データ入力!$Q$3:$AP$13,15,FALSE) -> 0.9317792964 | BI2: =+VLOOKUP($C$34,基礎データ入力!$Q$3:$AP$13,16,FALSE) -> 0.9250818391 | BJ2: =+VLOOKUP($C$34,基礎データ入力!$Q$3:$AP$13,17,FALSE) -> 0.9143097327 | BK2: =+VLOOKUP($C$34,基礎データ入力!$Q$3:$AP$13,18,FALSE) -> 0.9002225233 | BL2: =+VLOOKUP($C$34,基礎データ入力!$Q$3:$AP$13,19,FALSE) -> 0.8837182163 | BM2: =+VLOOKUP($C$34,基礎データ入力!$Q$3:$AP$13,20,FALSE) -> 0.8660152503 | BN2: =+VLOOKUP($C$34,基礎データ入力!$Q$3:$AP$13,21,FALSE) -> 0.8481223977 | BO2: =+VLOOKUP($C$34,基礎データ入力!$Q$3:$AP$13,22,FALSE) -> 0.8313253489 | BP2: =+VLOOKUP($C$34,基礎データ入力!$Q$3:$AP$13,23,FALSE) -> 0.8167970488 | BQ2: =+VLOOKUP($C$34,基礎データ入力!$Q$3:$AP$13,24,FALSE) -> 0.8055007764 | BR2: =+VLOOKUP($C$34,基礎データ入力!$Q$3:$AP$13,25,FALSE) -> 0.7983602504 | BS2: =+VLOOKUP($C$34,基礎データ入力!$Q$3:$AP$13,26,FALSE) -> 0.7958600773
D3: =90*(1-C3) -> 90 | P3: 2018/10kW未満/青エリア/税込26円 | Q3: 26 | R3: 10 | T3: 青森（青森） | AJ3: -75°（南東） | AK3: 南東 | AL3: 北東 | AM3: 南西 | AN3: 北西 | AO3: -75 | AS3: =+基礎データ入力!Q5 -> 10°
P4: 2018/10kW以上/18円+税10% | Q4: 19.8 | R4: 20 | T4: 秋田（秋田） | V4: システム発電量計算結果 | AJ4: -60°（南東） | AK4: 南東 | AL4: 北東 | AM4: 南西 | AN4: 北西 | AO4: -60 | AS4: =+基礎データ入力!Q6 -> 15°
A5: お客様名 | F5: 地域 | K5: 起動有効期限 | L5: ='シミュシート(メンテ費用有り)'!L5:M5 -> 2020-05-31 | N5: ='シミュシート(メンテ費用有り)'!N5 -> Ver 2.4.0 | P5: 2019/10kW未満/赤エリア/税込26円 | Q5: 26 | R5: 10 | T5: 岩手（盛岡） | V5: 地域 | W5: 1月 | X5: 2月 | Y5: 3月 | Z5: 4月 | AA5: 5月 | AB5: 6月 | AC5: 7月 | AD5: 8月 | AE5: 9月 | AF5: 10月 | AG5: 11月 | AH5: 12月 | AJ5: -45°（南東） | AK5: 南東 | AL5: 北東 | AM5: 南西 | AN5: 北西 | AO5: -45 | AS5: =+基礎データ入力!Q7 -> 20°
A6: ABC 様 | F6: 岡山（岡山） | P6: 2019/10kW未満/青エリア/税込24円 | Q6: 24 | R6: 10 | T6: 山形（山形） | V6: =+F6 -> 岡山（岡山） | W6: =+W2*$L$30*$N$30*基礎データ入力!$AX$5*基礎データ入力!$AY$3*基礎データ入力!$AZ$3 -> 488.4930016 | X6: =+X2*$L$30*$N$30*基礎データ入力!$AX$5*基礎データ入力!$AY$3*基礎データ入力!$AZ$3 -> 585.2477274 | Y6: =+Y2*$L$30*$N$30*基礎データ入力!$AX$3*基礎データ入力!$AY$3*基礎データ入力!$AZ$3 -> 630.4265731 | Z6: =+Z2*$L$30*$N$30*基礎データ入力!$AX$3*基礎データ入力!$AY$3*基礎データ入力!$AZ$3 -> 717.3631829 | AA6: =+AA2*$L$30*$N$30*基礎データ入力!$AX$3*基礎データ入力!$AY$3*基礎データ入力!$AZ$3 -> 805.8189619 | AB6: =+AB2*$L$30*$N$30*基礎データ入力!$AX$4*基礎データ入力!$AY$3*基礎データ入力!$AZ$3 -> 624.7849079 | AC6: =+AC2*$L$30*$N$30*基礎データ入力!$AX$4*基礎データ入力!$AY$3*基礎データ入力!$AZ$3 -> 735.3655913 | AD6: =+AD2*$L$30*$N$30*基礎データ入力!$AX$4*基礎データ入力!$AY$3*基礎データ入力!$AZ$3 -> 771.4344798 | AE6: =+AE2*$L$30*$N$30*基礎データ入力!$AX$3*基礎データ入力!$AY$3*基礎データ入力!$AZ$3 -> 649.1725483 | AF6: =+AF2*$L$30*$N$30*基礎データ入力!$AX$3*基礎データ入力!$AY$3*基礎データ入力!$AZ$3 -> 633.0062944 | AG6: =+AG2*$L$30*$N$30*基礎データ入力!$AX$3*基礎データ入力!$AY$3*基礎データ入力!$AZ$3 -> 502.8880154 | AH6: =+AH2*$L$30*$N$30*基礎データ入力!$AX$5*基礎データ入力!$AY$3*基礎データ入力!$AZ$3 -> 516.6574889 | AI6: =SUM(W6:AH6) -> 7660.658773 | AJ6: -30°（南東） | AK6: 南東 | AL6: 北東 | AM6: 南西 | AN6: 北西 | AO6: -30 | AS6: =+基礎データ入力!Q8 -> 25°
P7: 2019/10kW以上/14円+税10% | Q7: 15.4 | R7: 20 | T7: 宮城（仙台） | AJ7: -15°（南東） | AK7: 南東 | AL7: 北東 | AM7: 南西 | AN7: 北西 | AO7: -15 | AS7: =+基礎データ入力!Q9 -> 30°
P8: 2020/10kW未満/税込21円(委員長案) | Q8: 21 | R8: 10 | T8: 福島（郡山） | V8: お客様名 | AJ8: 0°（南） | AK8: 真南 | AL8: 真東 | AM8: 真西 | AN8: 真北 | AO8: 0 | AS8: =+基礎データ入力!Q10 -> 45°
A9: 売電金額パターン(年度にて指定) | E9: =$R$15 -> 10 | F9: 予想収支合計(税込) | P9: 2020/10kW以上/13円+税10%(委員長案) | Q9: 14.3 | R9: 20 | T9: 新潟（新潟） | V9: =+A6 -> ABC 様 | AJ9: 15°（南西） | AK9: 南西 | AL9: 南東 | AM9: 北西 | AN9: 北東 | AO9: 15 | AS9: =+基礎データ入力!Q11 -> 60°
A10: 2020/10kW未満/税込21円(委員長案) | E10: =L44*R15 -> 1874738.342 | T10: 長野（飯田） | AJ10: 30°（南西） | AK10: 南西 | AL10: 南東 | AM10: 北西 | AN10: 北東 | AO10: 30 | AS10: =+基礎データ入力!Q12 -> 75°
T11: 富山（富山） | V11: 地域 | AJ11: 45°（南西） | AK11: 南西 | AL11: 南東 | AM11: 北西 | AN11: 北東 | AO11: 45 | AS11: =+基礎データ入力!Q13 -> 90°
T12: 石川（金沢） | V12: =+F6 -> 岡山（岡山） | AJ12: 60°（南西） | AK12: 南西 | AL12: 南東 | AM12: 北西 | AN12: 北東 | AO12: 60
A13: 契約方式 | B13: 電気消費パターン | D13: 買電契約パターン | F13: 太陽光発電パネル型番 | T13: 福井（福井） | AJ13: 75°（南西） | AK13: 南西 | AL13: 南東 | AM13: 北西 | AN13: 北東 | AO13: 75
A14: 余剰 | B14: 4人住宅 | D14: 夜間中心契約 | F14: SPR-X22-360 | P14: 指定結果 | T14: 東京（東京） | AJ14: 90°（西） | AK14: 真西 | AL14: 真南 | AM14: 真北 | AN14: 真東 | AO14: 90
P15: =VLOOKUP(A10,P2:R14,1,FALSE) -> 2020/10kW未満/税込21円(委員長案) | Q15: =VLOOKUP(A10,P2:R14,2,FALSE) -> 21 | R15: =VLOOKUP(A10,P2:R14,3,FALSE) -> 10 | T15: 神奈川（海老名）
T16: 茨城（水戸）
A17: 固定買取期間 | C17: 売電単価 | E17: 昼間買電平均単価(手入力可能) | P17: 自己消費パターン | Q17: 年間自己消費量 | T17: 栃木（宇都宮）
A18: =R15 -> 10 | C18: =Q15 -> 21 | E18: =Q42 -> 40 | P18: 6人以上又は昼間在宅多い | Q18: 2000 | T18: 群馬（前橋）
P19: 5人住宅 | Q19: 1800 | T19: 埼玉（さいたま）
P20: 4人住宅 | Q20: 1400 | T20: 千葉（千葉）
P21: 3人以下の住宅 | Q21: 1000 | T21: 山梨（甲府）
P22: 昼不在 | Q22: 800 | T22: 静岡（静岡）
A23: 事業認定容量(旧：設備認定容量) | E23: システム容量 | P23: 自己消費無し | Q23: 0 | T23: 岐阜（美濃）
A24: (太陽光出力かパワコンのどちらか低い方) | E24: (太陽光発電モジュール出力合計) | K24: 方位 | L24: システム容量（kW） | N24: 方位・勾配損失 | T24: 愛知（岡崎）
A25: 5.5 | C25: kW | D25: =+VLOOKUP(E34,$AJ$2:$AN$14,5,FALSE) -> 真北 | E25: =SUM(L26:L29) -> 7.2 | G25: kW | I25: パネル型式 | L25: (太陽光発電モジュール出力合計) | P25: 指定結果 | T25: 三重（津）
D26: 設置枚数 | H26: =+F14 -> SPR-X22-360 | K26: =+D25 -> 真北 | L26: =+I29*D27/1000 -> 0 | N26: =+HLOOKUP(R31,$AU$1:$BS$2,2,FALSE) -> 0.7958600773 | P26: =VLOOKUP(B14,P18:Q23,1,FALSE) -> 4人住宅 | Q26: =VLOOKUP(B14,P18:Q23,2,FALSE) -> 1400 | T26: 大阪（大阪）
A27: =IF(E9=10,IF(A25<10,"OK","NG"),IF(E9=20,IF(A25>=10,"OK","NG"))) -> OK | G27: =IF(E25<A25,"NG","OK") -> OK | K27: =+G30 -> 真東 | L27: =+I29*F31/1000 -> 0 | N27: =+HLOOKUP(R32,$AU$1:$BS$2,2,FALSE) -> 0.8658827253 | T27: 滋賀（彦根）
I28: モジュール公称最大出力(W) | K28: =+D37 -> 真南 | L28: =+I29*D31/1000 -> 7.2 | N28: =+HLOOKUP(R33,$AU$1:$BS$2,2,FALSE) -> 0.9341232087 | T28: 奈良（奈良）
I29: =+VLOOKUP(H26,基礎データ入力!$A$3:$B$22,2,FALSE) -> 360 | J29: =+VLOOKUP(H26,基礎データ入力!A3:C21,3,FALSE) -> 1 | K29: =+A30 -> 真西 | L29: =+I29*B31/1000 -> 0 | N29: =+HLOOKUP(R34,$AU$1:$BS$2,2,FALSE) -> 0.8660152503 | T29: 和歌山（白浜）
A30: =+VLOOKUP(E34,$AJ$2:$AM$14,4,FALSE) -> 真西 | B30: 設置枚数 | D30: 設置枚数 | F30: 設置枚数 | G30: =+VLOOKUP(E34,$AJ$2:$AL$14,3,FALSE) -> 真東 | L30: =SUM(L26:L29) -> 7.2 | N30: =+N26*(L26/L30)+N27*(L27/L30)+N28*(L28/L30)+N29*(L29/L30) -> 0.9341232087 | R30: 方位 | T30: 京都（京都）
D31: 20 | R31: =+IF(R33-180<-180,(R33-180)+360,R33-180) -> -180 | T31: 兵庫（姫路）
R32: =+R33-90 -> -90 | T32: 岡山（岡山）
C33: 屋根傾斜角 | E33: 主方位 | R33: =+VLOOKUP(E34,$AJ$2:$AO$14,6,FALSE) -> 0 | T33: 鳥取（鳥取）
C34: 10° | E34: 0°（南） | R34: =+R33+90 -> 90 | T34: 広島（広島）
T35: 島根（松江）
T36: 山口（山口）
D37: =+VLOOKUP(E34,$AJ$2:$AK$14,2,FALSE) -> 真南 | T37: 徳島（徳島）
L38: =I34*5% -> 0 | P38: 昼間買電金額 | Q38: 買電単価 | T38: 愛媛（松山）
P39: 夜間中心契約 | Q39: 40 | T39: 高知（須崎）
A40: 【年間予測発電量・売電予想額】 | P40: オール電化契約 | Q40: 30 | T40: 福岡（飯塚）
A41: 太陽光発電 年間予想発電量 | D41: =IF($A$14="全量","昼間に購入する 年間電力量","太陽光から自家消費する年間電力量") -> 太陽光から自家消費する年間電力量 | F41: =IF($A$14="全量","昼間に購入する年間電気代…①","昼間の電気代年間節約額…①") -> 昼間の電気代年間節約額…① | I41: =IF($A$14="全量","年間売電予想額…②","余剰売電年間予想額…②") -> 余剰売電年間予想額…② | L41: =IF($A$14="全量","年間収支②－①","年間収支①＋②") -> 年間収支①＋② | P41: 従量契約 | Q41: 35 | T41: 佐賀（佐賀）
P42: =VLOOKUP(D14,P39:Q41,1,FALSE) -> 夜間中心契約 | Q42: =VLOOKUP(D14,P39:Q41,2,FALSE) -> 40 | T42: 長崎（長崎）
T43: 大分（大分）
A44: =AI6 -> 7660.658773 | D44: =Q26 -> 1400 | F44: =$E$18*D44 -> 56000 | I44: =IF($A$14="全量",($Q$15*A44),$Q$15*(A44-D44)) -> 131473.8342 | L44: =IF($A$14="全量",I44-F44,F44+I44) -> 187473.8342 | T44: 熊本（熊本）
T45: 宮崎（宮崎） | V45: 太陽光発電撤去費用概算(税込)
T46: 鹿児島（鹿児島）
R49: 175
A50: 季節自己消費% | B50: 0.16 | C50: 0.08 | D50: 0.06 | E50: 0.04 | F50: 0.04 | G50: 0.06 | H50: 0.1 | I50: 0.12 | J50: 0.06 | K50: 0.06 | L50: 0.08 | M50: 0.14 | N50: =SUM(B50:M50) -> 1 | R50: 134
A51: 下記、今後の課題 | R51: 75
A52: ・パネル劣化率計算どうする？ | R52: 75
A53: ・メンテナンス費用の計算は？→ｖ1.8.1で売電収支か設置費用の5%の何れか高い方で計算 | R53: 70
A54: ・廃棄費用の計算は？→v1.8.1で設置費用の5%として計算 | R54: 70
A55: ・固定買い取り期間終了後の売電収益計算は？

Sheet 基礎データ入力 (hidden)
A1: 太陽電池モジュール仕様値入力 | D1: 地域別日照量データベース | Q1: 屋根傾斜角度別出力ロス率データベース | AQ1: 方位リスト | AW1: ロス率
A2: 型式名 | B2: 出力 (W) | C2: 最小直列数 | D2: 地域 | E2: 1月 | F2: 2月 | G2: 3月 | H2: 4月 | I2: 5月 | J2: 6月 | K2: 7月 | L2: 8月 | M2: 9月 | N2: 10月 | O2: 11月 | P2: 12月 | Q2: 屋根勾配 | R2: -180 | S2: -165 | T2: -150 | U2: -135 | V2: -120 | W2: -105 | X2: -90 | Y2: -75 | Z2: -60 | AA2: -45 | AB2: -30 | AC2: -15 | AD2: 0 | AE2: 15 | AF2: 30 | AG2: 45 | AH2: 60 | AI2: 75 | AJ2: 90 | AK2: 105 | AL2: 120 | AM2: 135 | AN2: 150 | AO2: 165 | AP2: 180 | AQ2: 角度 | AR2: 下 | AS2: 右 | AT2: 左 | AU2: 上 | AV2: 角度2 | AX2: 温度補正 | AY2: パワコンによるロス | AZ2: その他損失
A3: SPR-X22-360 | B3: 360 | C3: 1 | D3: 北海道（帯広） | E3: 114.8666667 | F3: 135.6055556 | G3: 176.4444444 | H3: 150.9888889 | I3: 149.4972222 | J3: 150.8388889 | K3: 123.5527778 | L3: 112.8388889 | M3: 117.7388889 | N3: 119.5166667 | O3: 109.8861111 | P3: 101.2944444 | Q3: 0° | R3: 0.8694114506 | S3: 0.8694114506 | T3: 0.8694114506 | U3: 0.8694114506 | V3: 0.8694114506 | W3: 0.8694114506 | X3: 0.8694114506 | Y3: 0.8694114506 | Z3: 0.8694114506 | AA3: 0.8694114506 | AB3: 0.8694114506 | AC3: 0.8694114506 | AD3: 0.8694114506 | AE3: 0.8694114506 | AF3: 0.8694114506 | AG3: 0.8694114506 | AH3: 0.8694114506 | AI3: 0.8694114506 | AJ3: 0.8694114506 | AK3: 0.8694114506 | AL3: 0.8694114506 | AM3: 0.8694114506 | AN3: 0.8694114506 | AO3: 0.8694114506 | AP3: 0.8694114506 | AQ3: -90°（東） | AR3: 真東 | AS3: 真北 | AT3: 真南 | AU3: 真西 | AV3: -90 | AW3: 3-5月、9-11月 | AX3: 0.85 | AY3: 0.95 | AZ3: 0.95
A4: LR6-60HPH-320M | B4: 320 | C4: 1 | D4: 北海道（札幌） | E4: 70.80833333 | F4: 95.44166667 | G4: 131.4833333 | H4: 141.2888889 | I4: 157.0361111 | J4: 152.7638889 | K4: 139.75 | L4: 139.8194444 | M4: 122.3805556 | N4: 97.98888889 | O4: 73.375 | P4: 64.44722222 | Q4: 5° | R4: 0.8348995678 | S4: 0.8360903148 | T4: 0.8396388199 | U4: 0.8451969579 | V4: 0.8524937446 | W4: 0.8609179829 | X4: 0.8698228714 | Y4: 0.8789077567 | Z4: 0.8872449636 | AA4: 0.8944151593 | AB4: 0.8998546181 | AC4: 0.9033536736 | AD4: 0.9045839803 | AE4: 0.903432793 | AF4: 0.8998981338 | AG4: 0.8943914235 | AH4: 0.887320127 | AI4: 0.8789453384 | AJ4: 0.8699257267 | AK4: 0.8609654545 | AL4: 0.8525253924 | AM4: 0.845309703 | AN4: 0.8396487099 | AO4: 0.8360863588 | AP4: 0.8348995678 | AQ4: -75°（南東） | AR4: 南東 | AS4: 北東 | AT4: 南西 | AU4: 北西 | AV4: -75 | AW4: 6-8月 | AX4: 0.8
A5: LR6-60PE-310M | B5: 310 | C5: 1 | D5: 青森（青森） | E5: 50.73888889 | F5: 80.06111111 | G5: 122.0638889 | H5: 141.8944444 | I5: 154.075 | J5: 147.4833333 | K5: 137.8694444 | L5: 142.2944444 | M5: 128.9694444 | N5: 107.0083333 | O5: 69.01388889 | P5: 48.325 | Q5: 10° | R5: 0.7958600773 | S5: 0.798289043 | T5: 0.8053544055 | U5: 0.8166902377 | V5: 0.8312561194 | W5: 0.8480294324 | X5: 0.8658827253 | Y5: 0.8837637099 | Z5: 0.9001987875 | AA5: 0.9142780849 | AB5: 0.9251095309 | AC5: 0.931836658 | AD5: 0.9341232087 | AE5: 0.9317792964 | AF5: 0.9250818391 | AG5: 0.9143097327 | AH5: 0.9002225233 | AI5: 0.8837182163 | AJ5: 0.8660152503 | AK5: 0.8481223977 | AL5: 0.8313253489 | AM5: 0.8167970488 | AN5: 0.8055007764 | AO5: 0.7983602504 | AP5: 0.7958600773 | AQ5: -60°（南東） | AR5: 南東 | AS5: 北東 | AT5: 南西 | AU5: 北西 | AV5: -60 | AW5: 12-2月 | AX5: 0.9
A6: PM060MW4_325 | B6: 325 | C6: 1 | D6: 秋田（秋田） | E6: 60.96388889 | F6: 96.18888889 | G6: 107.1722222 | H6: 170.6166667 | I6: 133.2444444 | J6: 142.7472222 | K6: 157.7472222 | L6: 165.4111111 | M6: 117.4583333 | N6: 102.3694444 | O6: 59.48333333 | P6: 56.12222222 | Q6: 15° | R6: 0.7531850504 | S6: 0.7569808037 | T6: 0.7679249948 | U6: 0.7850622571 | V6: 0.8069644853 | W6: 0.8318969865 | X6: 0.8583466023 | Y6: 0.8844797405 | Z6: 0.9087535727 | AA6: 0.929457142 | AB6: 0.9453205819 | AC6: 0.9554696231 | AD6: 0.9588559335 | AE6: 0.955352922 | AF6: 0.9455539842 | AG6: 0.9296371386 | AH6: 0.9088979656 | AI6: 0.8847922621 | AJ6: 0.8585958284 | AK6: 0.8320374235 | AL6: 0.8069565733 | AM6: 0.7849653358 | AN6: 0.767905215 | AO6: 0.7570539891 | AP6: 0.7531850504 | AQ6: -45°（南東） | AR6: 南東 | AS6: 北東 | AT6: 南西 | AU6: 北西 | AV6: -45
D7: 岩手（盛岡） | E7: 86.50555556 | F7: 107.9166667 | G7: 136.5027778 | H7: 147.3666667 | I7: 150.9527778 | J7: 136.4944444 | K7: 125.9944444 | L7: 131.9361111 | M7: 103.7861111 | N7: 103.3722222 | O7: 82.05555556 | P7: 74.64722222 | Q7: 20° | R7: 0.707657769 | S7: 0.7128301999 | T7: 0.7278984898 | U7: 0.7508668519 | V7: 0.7800104833 | W7: 0.8132228299 | X7: 0.8479028414 | Y7: 0.8818509984 | Z7: 0.9131882152 | AA7: 0.9400373839 | AB7: 0.9606479879 | AC7: 0.973712579 | AD7: 0.9780779919 | AE7: 0.9737521387 | AF7: 0.960895236 | AG7: 0.9402035347 | AH7: 0.9132495327 | AI7: 0.8819400077 | AJ7: 0.8479028414 | AK7: 0.8133513989 | AL7: 0.7804911337 | AM7: 0.75138904 | AN7: 0.7281477159 | AO7: 0.7130022846 | AP7: 0.707657769 | AQ7: -30°（南東） | AR7: 南東 | AS7: 北東 | AT7: 南西 | AU7: 北西 | AV7: -30
D8: 山形（山形） | E8: 78.71666667 | F8: 101.1583333 | G8: 119.6916667 | H8: 137.9055556 | I8: 152.8111111 | J8: 129.9388889 | K8: 141.9361111 | L8: 144.7527778 | M8: 113.4444444 | N8: 106.4444444 | O8: 77.08888889 | P8: 61.90277778 | Q8: 25° | R8: 0.6600318456 | S8: 0.6669528152 | T8: 0.6863153106 | U8: 0.7152532315 | V8: 0.7515472788 | W8: 0.7920603681 | X8: 0.8341855152 | Y8: 0.8754205691 | Z8: 0.9132851364 | AA8: 0.9457913424 | AB8: 0.9708524126 | AC8: 0.9864191548 | AD8: 0.9919258651 | AE8: 0.9866367332 | AF8: 0.9709038403 | AG8: 0.9457596946 | AH8: 0.9135007368 | AI8: 0.875561006 | AJ8: 0.8344426533 | AK8: 0.7926339838 | AL8: 0.7520219952 | AM8: 0.7158703629 | AN8: 0.6867148636 | AO8: 0.6671427017 | AP8: 0.6600318456 | AQ8: -15°（南東） | AR8: 南東 | AS8: 北東 | AT8: 南西 | AU8: 北西 | AV8: -15
D9: 宮城（仙台） | E9: 103.0083333 | F9: 116.9416667 | G9: 144.1388889 | H9: 143.2055556 | I9: 152.625 | J9: 117.7888889 | K9: 117.4916667 | L9: 130.6694444 | M9: 107.0111111 | N9: 110.9722222 | O9: 100.575 | P9: 95.80277778 | Q9: 30° | R9: 0.6121744978 | S9: 0.6204582991 | T9: 0.6442336792 | U9: 0.6789631402 | V9: 0.721667837 | W9: 0.7693412321 | X9: 0.8181262548 | Y9: 0.8657126186 | Z9: 0.9091946634 | AA9: 0.9464875931 | AB9: 0.9755006775 | AC9: 0.9937357214 | AD9: 1 | AE9: 0.9939394539 | AF9: 0.9755066114 | AG9: 0.9466774797 | AH9: 0.9094142197 | AI9: 0.8655998734 | AJ9: 0.8185534996 | AK9: 0.7698970459 | AL9: 0.7227082571 | AM9: 0.6800846578 | AN9: 0.6450723448 | AO9: 0.6211881756 | AP9: 0.6121744978 | AQ9: 0°（南） | AR9: 真南 | AS9: 真東 | AT9: 真西 | AU9: 真北 | AV9: 0
D10: 福島（郡山） | E10: 93.49166667 | F10: 110.0944444 | G10: 129.4222222 | H10: 139.3472222 | I10: 137.0527778 | J10: 109.1138889 | K10: 114.2194444 | L10: 135.1944444 | M10: 104.0527778 | N10: 113.9083333 | O10: 87.83888889 | P10: 78.58888889 | Q10: 45° | R10: 0.4917132317 | S10: 0.4990199084 | T10: 0.5256653447 | U10: 0.5726860048 | V10: 0.6305875605 | W10: 0.6934756164 | X10: 0.7566583921 | Y10: 0.8177702175 | Z10: 0.8732803893 | AA10: 0.9207223601 | AB10: 0.9582902297 | AC10: 0.9820537419 | AD10: 0.9901239208 | AE10: 0.9820972575 | AF10: 0.9584286887 | AG10: 0.9210467497 | AH10: 0.8731399523 | AI10: 0.8180748272 | AJ10: 0.7578847428 | AK10: 0.6950837182 | AL10: 0.6332677302 | AM10: 0.5758329789 | AN10: 0.5288538566 | AO10: 0.5016367826 | AP10: 0.4917132317 | AQ10: 15°（南西） | AR10: 南西 | AS10: 南東 | AT10: 北西 | AU10: 北東 | AV10: 15
D11: 新潟（新潟） | E11: 59.65 | F11: 75.69444444 | G11: 121.625 | H11: 145.7444444 | I11: 161.7583333 | J11: 136.5194444 | K11: 147.4527778 | L11: 165.125 | M11: 125.0805556 | N11: 111.625 | O11: 73.03055556 | P11: 49.25555556 | Q11: 60° | R11: 0.3953359113 | S11: 0.4024625914 | T11: 0.4308110728 | U11: 0.481107276 | V11: 0.5441753286 | W11: 0.6122615292 | X11: 0.6805989339 | Y11: 0.745965405 | Z11: 0.8044385984 | AA11: 0.8557277501 | AB11: 0.895508985 | AC11: 0.9213117997 | AD11: 0.9303136095 | AE11: 0.9218082739 | AF11: 0.8958867801 | AG11: 0.8555161057 | AH11: 0.8051427611 | AI11: 0.7458981536 | AJ11: 0.6818569323 | AK11: 0.6149179631 | AL11: 0.5477416356 | AM11: 0.4856566416 | AN11: 0.4356749379 | AO11: 0.4058291219 | AP11: 0.3953359113 | AQ11: 30°（南西） | AR11: 南西 | AS11: 南東 | AT11: 北西 | AU11: 北東 | AV11: 30
D12: 長野（飯田） | E12: 98.67222222 | F12: 123.9888889 | G12: 138.6055556 | H12: 151.4277778 | I12: 156.1888889 | J12: 136.1611111 | K12: 151.1222222 | L12: 166.8555556 | M12: 129.3944444 | N12: 113.3805556 | O12: 101.7944444 | P12: 100.7722222 | Q12: 75° | R12: 0.3224293612 | S12: 0.3324537893 | T12: 0.3628395953 | U12: 0.4084677539 | V12: 0.4662723883 | W12: 0.5302997636 | X12: 0.594845371 | Y12: 0.6566633371 | Z12: 0.7108917745 | AA12: 0.7579163906 | AB12: 0.7941214285 | AC12: 0.8171609981 | AD12: 0.8253518341 | AE12: 0.8177484596 | AF12: 0.7940838468 | AG12: 0.7568858604 | AH12: 0.7104665078 | AI12: 0.6559571964 | AJ12: 0.5966196236 | AK12: 0.5333082789 | AL12: 0.4704340688 | AM12: 0.4128232769 | AN12: 0.3663920564 | AO12: 0.3338838725 | AP12: 0.3224293612 | AQ12: 45°（南西） | AR12: 南西 | AS12: 南東 | AT12: 北西 | AU12: 北東 | AV12: 45
D13: 富山（富山） | E13: 65.81111111 | F13: 81.825 | G13: 122.1666667 | H13: 140.5138889 | I13: 152.875 | J13: 118.0138889 | K13: 133.7055556 | L13: 157.4138889 | M13: 120.6527778 | N13: 119.5722222 | O13: 83.79722222 | P13: 65.54722222 | Q13: 90° | R13: 0.2842483162 | S13: 0.2926448627 | T13: 0.3152374077 | U13: 0.3505266385 | V13: 0.3974721351 | W13: 0.4506245488 | X13: 0.5048549642 | Y13: 0.5560986223 | Z13: 0.6003125216 | AA13: 0.6369052446 | AB13: 0.664064957 | AC13: 0.6801380634 | AD13: 0.6852590666 | AE13: 0.6802646544 | AF13: 0.6631115682 | AG13: 0.6348125365 | AH13: 0.5987459575 | AI13: 0.5552995164 | AJ13: 0.5056916519 | AK13: 0.4530574704 | AL13: 0.4004687825 | AM13: 0.3538120716 | AN13: 0.317173855 | AO13: 0.2929237586 | AP13: 0.2842483162 | AQ13: 60°（南西） | AR13: 南西 | AS13: 南東 | AT13: 北西 | AU13: 北東 | AV13: 60
A14: 年間発電量専用(1kW) | B14: 1000 | C14: 1 | D14: 石川（金沢） | E14: 51.71111111 | F14: 74.30833333 | G14: 114.375 | H14: 137.4916667 | I14: 155.9111111 | J14: 119.9611111 | K14: 139.2777778 | L14: 163.525 | M14: 121.3833333 | N14: 135.3055556 | O14: 76.86666667 | P14: 56.79166667 | AQ14: 75°（南西） | AR14: 南西 | AS14: 南東 | AT14: 北西 | AU14: 北東 | AV14: 75
A15: 他社パネル(330W) | B15: 330 | C15: 1 | D15: 福井（福井） | E15: 64.48333333 | F15: 77.20555556 | G15: 123.9305556 | H15: 143.775 | I15: 151.6722222 | J15: 116.5 | K15: 138.5138889 | L15: 161.1277778 | M15: 128.1888889 | N15: 122.9888889 | O15: 85.65555556 | P15: 67.35 | R15: ※ロス率の計算にはNEDO標準気象・日射データ（METPV-3）の東京における日射量データ（1990年から2003年の平均年のデータを）使用（全天日射量より演算） | AQ15: 90°（西） | AR15: 真西 | AS15: 真南 | AT15: 真北 | AU15: 真東 | AV15: 90
A16: 他社パネル(300W) | B16: 300 | C16: 1 | D16: 東京（東京） | E16: 120.8166667 | F16: 119.1305556 | G16: 131.3805556 | H16: 142.2916667 | I16: 136.3944444 | J16: 108.3083333 | K16: 131.5277778 | L16: 122.5388889 | M16: 99.95555556 | N16: 101.1527778 | O16: 91.05555556 | P16: 99.79444444 | R16: 真南・傾斜角30度を1として規格化
A17: 他社パネル(290W) | B17: 290 | C17: 1 | D17: 神奈川（海老名） | E17: 107.4388889 | F17: 111.9222222 | G17: 125.2 | H17: 121.1 | I17: 126.6833333 | J17: 92.21388889 | K17: 123.125 | L17: 136.7472222 | M17: 110.0694444 | N17: 105.6222222 | O17: 96.46666667 | P17: 108.1194444
A18: 他社パネル(280W) | B18: 280 | C18: 1 | D18: 茨城（水戸） | E18: 104.2 | F18: 110.275 | G18: 132.1666667 | H18: 131.9861111 | I18: 138.6944444 | J18: 123.9361111 | K18: 136.2027778 | L18: 158.6583333 | M18: 116.5805556 | N18: 102.5777778 | O18: 94.01111111 | P18: 110.4972222
A19: 他社パネル(270W) | B19: 270 | C19: 1 | D19: 栃木（宇都宮） | E19: 122.9583333 | F19: 128.4638889 | G19: 149.1527778 | H19: 143.4638889 | I19: 138.4277778 | J19: 111.6055556 | K19: 121.8555556 | L19: 135.3833333 | M19: 100.475 | N19: 115.5527778 | O19: 100.5666667 | P19: 117.1361111
D20: 群馬（前橋） | E20: 128.3555556 | F20: 130.1694444 | G20: 156.3305556 | H20: 147.1972222 | I20: 149.5777778 | J20: 118.1388889 | K20: 131.0472222 | L20: 139.7888889 | M20: 109.3166667 | N20: 111.4027778 | O20: 115.4444444 | P20: 119.35
D21: 埼玉（さいたま） | E21: 111.5 | F21: 120.4166667 | G21: 144.5305556 | H21: 131.1527778 | I21: 130.4361111 | J21: 109.2888889 | K21: 120.3861111 | L21: 136.1305556 | M21: 117.3583333 | N21: 112.5388889 | O21: 101.0833333 | P21: 105.0055556
D22: 千葉（千葉） | E22: 102.2555556 | F22: 106.1805556 | G22: 110.7027778 | H22: 141.3888889 | I22: 147.2972222 | J22: 114.0972222 | K22: 151.7305556 | L22: 160.0805556 | M22: 117.0083333 | N22: 104.825 | O22: 98.275 | P22: 105.4611111
D23: 山梨（甲府） | E23: 134.3527778 | F23: 141.0222222 | G23: 158.2361111 | H23: 153.3777778 | I23: 147.8888889 | J23: 127.8083333 | K23: 150.0583333 | L23: 160.7888889 | M23: 122.6916667 | N23: 115.4083333 | O23: 112.6777778 | P23: 121.4166667
D24: 静岡（静岡） | E24: 145.6722222 | F24: 133.5527778 | G24: 146.25 | H24: 154.2 | I24: 142.2194444 | J24: 123.6444444 | K24: 145.3472222 | L24: 165.0666667 | M24: 135.2555556 | N24: 118.4888889 | O24: 110.1388889 | P24: 125.7166667
D25: 岐阜（美濃） | E25: 90.74722222 | F25: 111.0694444 | G25: 128.1916667 | H25: 135.4944444 | I25: 130.8916667 | J25: 105.7888889 | K25: 126.2555556 | L25: 138.9083333 | M25: 119.2 | N25: 114.9888889 | O25: 97.175 | P25: 88.89444444
D26: 愛知（岡崎） | E26: 100.7527778 | F26: 107.2 | G26: 143.2138889 | H26: 141.7388889 | I26: 129.4916667 | J26: 100.5 | K26: 123.0777778 | L26: 147.4888889 | M26: 116.4444444 | N26: 119.2277778 | O26: 104.6638889 | P26: 99.12777778
D27: 三重（津） | E27: 96.69722222 | F27: 107.3777778 | G27: 128.075 | H27: 150.9638889 | I27: 151.2027778 | J27: 135.9166667 | K27: 155.275 | L27: 171.9916667 | M27: 129.125 | N27: 115.4916667 | O27: 101.6361111 | P27: 95
D28: 大阪（大阪） | E28: 86.76944444 | F28: 99.84722222 | G28: 135.0333333 | H28: 133.0305556 | I28: 138.275 | J28: 112.5333333 | K28: 143.7944444 | L28: 152.7472222 | M28: 119.0777778 | N28: 112.4722222 | O28: 93.48055556 | P28: 96.95833333
D29: 滋賀（彦根） | E29: 75.69444444 | F29: 95.90277778 | G29: 115.5277778 | H29: 136.1777778 | I29: 143.6972222 | J29: 117.4638889 | K29: 142.7111111 | L29: 156.7611111 | M29: 128.1083333 | N29: 123.0916667 | O29: 92.38888889 | P29: 81.79722222
D30: 奈良（奈良） | E30: 84.61388889 | F30: 88.95277778 | G30: 130.4861111 | H30: 133.5722222 | I30: 138.7138889 | J30: 132.0138889 | K30: 137.8361111 | L30: 152.0638889 | M30: 130.8111111 | N30: 116.0027778 | O30: 96.70833333 | P30: 88.83055556
D31: 和歌山（白浜） | E31: 101.3972222 | F31: 107.9555556 | G31: 139.4305556 | H31: 140.3333333 | I31: 131.9888889 | J31: 112.6722222 | K31: 146.2138889 | L31: 159.0222222 | M31: 133.5666667 | N31: 134.3972222 | O31: 104.2222222 | P31: 103.6583333
D32: 京都（京都） | E32: 81.65555556 | F32: 94.20833333 | G32: 124.7583333 | H32: 131.6944444 | I32: 138.1888889 | J32: 109.6 | K32: 140.7027778 | L32: 160.6611111 | M32: 120.7194444 | N32: 114.7916667 | O32: 91.45555556 | P32: 85.20555556
D33: 兵庫（姫路） | E33: 87.56388889 | F33: 94.69166667 | G33: 121.4972222 | H33: 145.0305556 | I33: 148.3333333 | J33: 126.2111111 | K33: 160.1888889 | L33: 168.8777778 | M33: 132.1888889 | N33: 126.3361111 | O33: 98.84722222 | P33: 92.67222222
D34: 岡山（岡山） | E34: 89.41944444 | F34: 107.1305556 | G34: 122.1888889 | H34: 139.0388889 | I34: 156.1833333 | J34: 128.6638889 | K34: 151.4361111 | L34: 158.8638889 | M34: 125.8222222 | N34: 122.6888889 | O34: 97.46944444 | P34: 94.575
D35: 鳥取（鳥取） | E35: 55.21944444 | F35: 72.48888889 | G35: 108.5444444 | H35: 140.3277778 | I35: 156.7583333 | J35: 124.8305556 | K35: 143.4888889 | L35: 153.6527778 | M35: 111.5194444 | N35: 112.8944444 | O35: 77.11666667 | P35: 60.40833333
D36: 広島（広島） | E36: 96.57777778 | F36: 104.2888889 | G36: 137.1916667 | H36: 141.6027778 | I36: 153.6416667 | J36: 127.5444444 | K36: 144.9916667 | L36: 153.7277778 | M36: 139.8777778 | N36: 140.0916667 | O36: 106.4972222 | P36: 105.2861111
D37: 島根（松江） | E37: 60.01388889 | F37: 72.87777778 | G37: 110.7166667 | H37: 138.2638889 | I37: 147.2611111 | J37: 129.575 | K37: 155.6361111 | L37: 153.2583333 | M37: 119.6416667 | N37: 121.725 | O37: 82.55277778 | P37: 60.91666667
D38: 山口（山口） | E38: 81.96666667 | F38: 93.09722222 | G38: 118.7583333 | H38: 142.3722222 | I38: 150.6388889 | J38: 116.4083333 | K38: 144.9666667 | L38: 161.1583333 | M38: 130.5361111 | N38: 124.0944444 | O38: 98.48055556 | P38: 83.925
D39: 香川（高松） | E39: 95.3 | F39: 99.33888889 | G39: 140.2805556 | H39: 136.9277778 | I39: 156.0833333 | J39: 132.1055556 | K39: 157.8416667 | L39: 166.6888889 | M39: 128.2055556 | N39: 124.9388889 | O39: 102.5138889 | P39: 104.2222222
D40: 徳島（徳島） | E40: 96.30833333 | F40: 101.8666667 | G40: 125.1305556 | H40: 143.9222222 | I40: 156.2416667 | J40: 129.7222222 | K40: 161.6083333 | L40: 172.6805556 | M40: 125.7944444 | N40: 118.1416667 | O40: 98.60277778 | P40: 99.80277778
D41: 愛媛（松山） | E41: 101.6527778 | F41: 112.5777778 | G41: 146.3611111 | H41: 144.0333333 | I41: 140.5361111 | J41: 126.5138889 | K41: 153.8944444 | L41: 166.0972222 | M41: 135.625 | N41: 130.6861111 | O41: 99.46111111 | P41: 93.54444444
D42: 高知（須崎） | E42: 108.1944444 | F42: 117.5472222 | G42: 141.1861111 | H42: 130.4916667 | I42: 127.725 | J42: 102.1 | K42: 135.1888889 | L42: 139.3666667 | M42: 130.8861111 | N42: 129.6944444 | O42: 107.3555556 | P42: 106.7888889
D43: 福岡（飯塚） | E43: 73.93888889 | F43: 88.64166667 | G43: 120.05 | H43: 142.7638889 | I43: 153.9222222 | J43: 125.6916667 | K43: 142.6166667 | L43: 153.2194444 | M43: 135.9527778 | N43: 129.2944444 | O43: 94.09444444 | P43: 82.16111111
D44: 佐賀（佐賀） | E44: 92.33888889 | F44: 103.7111111 | G44: 131.6916667 | H44: 138.3166667 | I44: 128.925 | J44: 108.2944444 | K44: 134.5805556 | L44: 155.8416667 | M44: 133.1416667 | N44: 128.3194444 | O44: 107.225 | P44: 94.19166667
D45: 長崎（長崎） | E45: 86.80833333 | F45: 103.3305556 | G45: 127.3222222 | H45: 140.9277778 | I45: 142.6027778 | J45: 113.4805556 | K45: 149.325 | L45: 158.1861111 | M45: 140.6472222 | N45: 131.9111111 | O45: 99.30277778 | P45: 89.525
D46: 大分（大分） | E46: 103.6972222 | F46: 99.66666667 | G46: 121.3388889 | H46: 133.0611111 | I46: 138.9638889 | J46: 118.2166667 | K46: 138.6527778 | L46: 150.3916667 | M46: 124.4194444 | N46: 127.1416667 | O46: 108.8638889 | P46: 105.925
D47: 熊本（熊本） | E47: 98.05277778 | F47: 107.9833333 | G47: 124.4861111 | H47: 136.2972222 | I47: 141.2138889 | J47: 111.7611111 | K47: 147.5916667 | L47: 158.4111111 | M47: 139.9388889 | N47: 128.2305556 | O47: 112.3527778 | P47: 101.7777778
D48: 宮崎（宮崎） | E48: 133.9527778 | F48: 125.7055556 | G48: 132.0916667 | H48: 140.9888889 | I48: 136.6194444 | J48: 111.9277778 | K48: 146.3194444 | L48: 154.5583333 | M48: 134.9388889 | N48: 134.1055556 | O48: 123.95 | P48: 126.0333333
D49: 鹿児島（鹿児島） | E49: 106.4527778 | F49: 114.6638889 | G49: 134.7527778 | H49: 141.5083333 | I49: 139.225 | J49: 107.5 | K49: 148.9138889 | L49: 157.4083333 | M49: 156.4694444 | N49: 140.8638889 | O49: 116.625 | P49: 106.7361111
D50: 出展：(独)新エネルギー・産業技術総合開発機構（NEDO）／標準気象・日射データ(METPV-3)の日射量データ（1990年～2003年の平均年の月データ）
D51: 単位：kWh/kWp

Sheet 改訂履歴
A1: 改定履歴 | D1: Pass 123456
A3: 更新日付 | B3: バーション | C3: 担当者 | D3: 改定理由・改定部分
A4: 2016-03-15 | B4: beta1.0.2 | C4: SIS矢部 | D4: 余剰契約、単価設定追加、パネル250W，255W，260W，265W種目削除
A5: 2016-04-18 | B5: beta1.0.3 | C5: SIS矢部 | D5: パネル劣化率修正
A6: 2016-04-19 | B6: beta1.0.4 | C6: SIS矢部 | D6: パネル劣化率計算式削除、マクロ有効ブック形式に変更
A7: 2016-05-10 | B7: beta1.0.5 | C7: SIS矢部 | D7: 売電単価入力文言を改定
A8: 2016-05-16 | B8: beta1.0.6 | C8: SIS矢部 | D8: 家庭内消費電力を変更 昼間在宅1800→2000、昼間不在600→800、予想売電量欄を追加
A9: 2016-05-16 | B9: beta1.0.6 | C9: SIS矢部 | D9: 自己消費バランス9月8%→6%へ12月10%→12%
A10: 2016-05-19 | B10: 1.1 | C10: SIS矢部 | D10: 正式リリースバーション1.1に改定
A11: 2016-08-10 | B11: 1.2 | C11: SIS矢部 | D11: PM060シリーズ265,280,300追加、PM250M01_270削除
A12: 2016-08-10 | B12: 1.2 | C12: SIS矢部 | D12: 消費税10%項削除
A13: 2016-09-13 | B13: 1.3 | C13: SIS矢部 | D13: SolarWorld社製両面ガラスパネル2種追加
A14: 2016-10-21 | B14: 1.4 | C14: SIS矢部 | D14: H29年度予想価格入力、テルサンソーラー追加
A15: 2016-10-21 | B15: 1.4_SG | C15: SIS矢部 | D15: 1.4から派生、SG専用シート作成
A16: 2016-11-17 | B16: 1.5 | C16: SIS矢部 | D16: 地域選択で福島(郡山)が表示されない不具合を修正、yield算出専用(1kW)追加
A17: 2016-11-17 | B17: 1.5_SG | C17: SIS矢部 | D17: 1.5から派生、SG専用シート作成
A18: 2016-12-02 | B18: 1.6 | C18: SIS矢部 | D18: 他社パネル用として260Wから300Wまで作成
A19: 2016-12-19 | B19: 1.7 | C19: SIS矢部 | D19: 平成29年度委員長案売電単価入力
A20: 2016-12-19 | B20: 1.7_SG | C20: SIS矢部 | D20: 1.7から派生、SG専用シート作成
A21: 2017-03-27 | B21: 1.8 | C21: SIS矢部 | D21: 平成27年度単価削除、平成29年度確定単価追加、
A22: 2017-03-27 | B22: 1.8 | C22: SIS矢部 | D22: 平成30年度～31年度10kW未満H28年発表委員長案単価追加
A23: 2017-03-27 | B23: 1.8 | C23: SIS矢部 | D23: 平成30年度～31年度10kW以上予想単価追加
A24: 2017-03-27 | B24: 1.8 | C24: SIS矢部 | D24: 起動期限を2017年8月31日まで延長
A25: 2017-08-31 | B25: 1.9.0 | C25: SIS矢部 | D25: 起動期限を2017年11月30日まで延長
A26: 2017-08-31 | B26: 1.9.0 | C26: SIS矢部 | D26: SolarWorld製モジュール型番削除
A27: 2017-08-31 | B27: 1.9.0 | C27: SIS矢部 | D27: 月間発電量及び買電量を年間表記に統合。全量余剰の数式修正。
A28: 2017-09-25 | B28: 1.9.1 | C28: SIS矢部 | D28: PM096B00_327をPM096BW0_327に修正。
A29: 2017-12-01 | B29: 1.9.2 | C29: SIS矢部 | D29: 起動期限を2018年3月31日まで延長
A30: 2017-12-01 | B30: 1.9.2 | C30: SIS矢部 | D30: H30年度予想価格19→18に変更、H31年度予想単価18→16に変更。
A31: 2018-04-04 | B31: 1.9.3 | C31: SIS矢部 | D31: H.３０年度確定単価に変更。起動期限を8/31に延長
A32: 2018-04-04 | B32: 1.9.3 | C32: SIS矢部 | D32: LONGi社製単結晶パネル「LR6-60-285M」を追加。他社比較パネル(260W)他、取り扱い終了型番を削除
A33: 2018-04-24 | B33: 1.9.4 | C33: SIS矢部 | D33: シュミレート(メンテ費用有リ)のシステム容量計算の間違いを修正
A34: 2018-09-03 | B34: 1.9.5 | C34: SIS矢部 | D34: 起動期限を2019年1月11日まで延長
A35: 2018-11-08 | B35: 1.9.6 | C35: SIS矢部 | D35: 基礎データ入力のNEDOの計算単位表記をkWh/m2→kWh/kWpに修正
A36: 2018-11-08 | B36: 1.9.6 | C36: SIS矢部 | D36: 自家消費の計算を「差額×自家消費量」から「買電単価×自家消費量」に変更
A37: 2018-11-08 | B37: 1.9.6 | C37: SIS矢部 | D37: PM250M01_280、PM060PW1_265、他社比較(265W)の3機種を削除
A38: 2018-11-08 | B38: 1.9.6 | C38: SIS矢部 | D38: LR6-60PE-310M、SPR-X21-345-IEC、PM060MW4_325の3機種を追加
A39: 2018-11-08 | B39: 1.9.6 | C39: SIS矢部 | D39: 買電金額を手入力可能に変更
A40: 2018-11-08 | B40: 1.9.6 | C40: SIS矢部 | D40: 起動期限を2019年4月11日まで延長
A41: 2019-01-15 | B41: 2.0.0 | C41: SIS矢部 | D41: 起動期限を2019年6月30日まで延長、材工の考え方に足場を追記、14円+消費税10%を委員長案で変更。
A42: 2019-04-04 | B42: 2.1.0 | C42: SIS矢部 | D42: 委員長案を正式価格に変更。2016年度の売電単価を削除。
A43: 2019-04-04 | B43: 2.1.0 | C43: SIS矢部 | D43: 元号表記を西暦表記に変更。
A44: 2019-04-04 | B44: 2.1.0 | C44: SIS矢部 | D44: PM250M01_280、SPR-E20-327、PM096BW0_327の3機種を削除
A45: 2019-04-04 | B45: 2.1.0 | C45: SIS矢部 | D45: SPR-X22-360の1機種を追加
A46: 2019-04-04 | B46: 2.1.0 | C46: SIS矢部 | D46: 起動期限を2019年8月31日まで延長
A47: 2019-08-30 | B47: 2.2.0 | C47: SIS矢部 | D47: 起動期限を2019年12月31日まで延長
A48: 2019-10-15 | B48: 2.3.0 | C48: SIS矢部 | D48: 2017年度単価削除、2020年予想単価追加。テルサンソーラーパネル削除。
A49: 2019-10-25 | B49: 2.3.1 | C49: SIS矢部 | D49: 「SPR-MAX3-400,LR6-60HPH-320M」を追加 「LR6-60-285M,PM060PW1_270,PM096B00_330」を削除
A50: 2020-01-17 | B50: 2.3.2 | C50: SIS矢部 | D50: 起動期限を2020年3月31日まで延長
A51: 2020-01-31 | B51: 2.3.2 | C51: SIS矢部 | D51: 「SPR-MAX3-400,PM060PW1_280,PM060PW1_270,PM060MW3_300,SPR-X21-345-IEC」を削除
A52: 202/2/21 | B52: 2.4.0 | C52: SIS矢部 | D52: 2020年度売電価格(委員長案)に更新、昼間電気代を変更
A53: 202/2/21 | B53: 2.4.0 | C53: SIS矢部 | D53: 起動期限を2020年5月31日まで延長
